[Event "Magistral Szmetan Giardelli 2019"]
[Site "Buenos Aires"]
[Date "2019.12.02"]
[Round "2.1"]
[White "Slipak, Sergio"]
[Black "Felgaer, Ruben"]
[Result "0-1"]
[ECO "D04"]
[WhiteElo "2384"]
[BlackElo "2560"]
[Annotator "ChessBase"]
[PlyCount "104"]
[EventDate "2019.12.01"]
[EventType "tourn"]
[EventCountry "ARG"]
[SourceTitle "playchess.com"]
[Source "ChessBase"]
[SourceQuality "1"]
[TimeControl "40/5400+30:1800+30"]

1. d4 {[%emt 0:00:00]} Nf6 {[%emt 0:00:00]} 2. Nf3 {[%emt 0:00:30]} c6 {[%emt 0:00:30]} 3. e3 {[%emt 0:07:10]} d5 {[%emt 0:11:31]} 4. Bd3 {[%emt 0:00:30]} Bg4 {[%emt 0:00:30]} 5. Nbd2 {[%emt 0:00:30]} Nbd7 {[%emt 0:00:30]} 6. h3 {[%emt 0:00:30]} Bh5 {[%emt 0:00:30]} 7. b3 {[%emt 0:10:30]} e5 {[%emt 0:00:30]} 8. g4 {[%emt 0:00:30]} e4 {[%emt 0:00:30]} 9. gxh5 {[%emt 0:00:30]} exd3 {[%emt 0:00:30]} 10. cxd3 {[%emt 0:23:10]} Nxh5 {[%emt 0:00:30]} 11. Bb2 {[%emt 0:00:30]} g6 {[%emt 0:00:30]} 12. Ne5 {[%emt 0:00:30]} Bd6 {[%emt 0:00:30]} 13. Qg4 {[%emt 0:00:30]} Nf8 {[%emt 0:00:30]} 14. O-O {[%emt 0:14:11]} f6 {[%emt 0:00:30]} 15. Nef3 {[%emt 0:00:30]} Kf7 {[%emt 0:08:19]} 16. Nh4 {[%emt 0:05:30]} Ng7 {[%emt 0:04:50]} 17. f4 {[%emt 0:09:00]} f5 {[%emt 0:00:30]} 18. Qg3 {[%emt 0:00:30]} Nfe6 {[%emt 0:00:30]} 19. Nhf3 {[%emt 0:21:50]} Qa5 {[%emt 0:00:30]} 20. Qe1 {[%emt 0:00:30]} Qa6 {[%emt 0:00:30]} 21. Rd1 Rhe8 {[%emt 0:11:33]} 22. Ne5+ Bxe5 {[%emt 0:00:30]} 23. fxe5 Kg8 {[%emt 0:05:07]} 24. Bc3 Qxa2 {[%emt 0:00:30]} 25. Bb4 Qa6 {[%emt 0:00:30]} 26. Nf3 Qb6 {[%emt 0:04:20]} 27. Bd6 f4 {[%emt 0:00:30]} 28. exf4 Nxd4 {[%emt 0:06:50]} 29. Nxd4 Qxd4+ {[%emt 0:00:30]} 30. Qf2 Qxf2+ {[%emt 0:00:30]} 31. Kxf2 Nf5 {[%emt 0:00:30]} 32. Ba3 a5 {[%emt 0:00:30]} 33. Bc5 Kf7 {[%emt 0:00:30]} 34. Ra1 Ra6 {[%emt 0:00:30]} 35. b4 Rea8 {[%emt 0:10:40]} 36. bxa5 Rxa5 {[%emt 0:00:30]} 37. Rxa5 Rxa5 {[%emt 0:00:30]} 38. d4 Ra2+ {[%emt 0:00:30]} 39. Kf3 Rb2 {[%emt 0:00:30]} 40. Ra1 Rb5 {[%emt 0:00:30]} 41. Kf2 b6 {[%emt 0:30:30]} 42. Ra7+ Ke6 {[%emt 0:00:30]} 43. Bf8 Rb2+ {[%emt 0:00:30]} 44. Kf3 Nxd4+ {[%emt 0:00:30]} 45. Ke3 Nf5+ {[%emt 0:00:30]} 46. Kd3 Rb3+ {[%emt 0:00:30]} 47. Kd2 Rxh3 {[%emt 0:00:30]} 48. Rc7 Nd4 {[%emt 0:00:30]} 49. Rb7 Rf3 {[%emt 0:02:00]} 50. Re7+ Kf5 {[%emt 0:00:30]} 51. Rf7+ Ke4 {[%emt 0:00:30]} 52. Bd6 c5 {[%emt 0:02:20]} 0-1

[Event "Magistral Szmetan Giardelli 2019"]
[Site "Buenos Aires"]
[Date "2019.12.04"]
[Round "4.3"]
[White "Santiago, Yago De Moura"]
[Black "Hoffman, Alejandro"]
[Result "1/2-1/2"]
[ECO "A55"]
[WhiteElo "2479"]
[BlackElo "2441"]
[Annotator "RC"]
[PlyCount "55"]
[EventDate "2019.12.01"]
[EventType "tourn"]
[EventCountry "ARG"]
[SourceTitle "playchess.com"]
[Source "ChessBase"]
[SourceQuality "1"]
[TimeControl "40/5400+30:1800+30"]

1. c4 {[%emt 0:00:00]} c6 {[%emt 0:00:00]} 2. d4 {[%emt 0:00:30]} d6 {[%emt 0:08:41]} 3. Nf3 {[%emt 0:00:30]} Nd7 {[%emt 0:00:30]} 4. Nc3 {[%emt 0:00:30]} e5 {[%emt 0:00:30]} 5. e4 {[%emt 0:00:30]} Ngf6 {[%emt 0:00:30]} 6. Be2 {[%emt 0:00:30]} Be7 {[%emt 0:00:30]} 7. O-O {[%emt 0:10:41]} O-O {[%emt 0:00:30]} 8. Qc2 {[%emt 0:00:30]} a6 {[%emt 0:00:30]} 9. Rd1 {[%emt 0:00:30]} Qc7 {[%emt 0:00:30]} 10. a4 {[%emt 0:00:30]} a5 {[%emt 0:00:30]} 11. h3 {[%emt 0:07:50]} exd4 {[%emt 0:00:30]} 12. Nxd4 {[%emt 0:00:30]} Nc5 {[%emt 0:00:30]} 13. Bf4 {[%emt 0:00:30]} Re8 {[%emt 0:00:30]} 14. Bf3 {[%emt 0:00:30]} Qb6 {[%emt 0:16:00]} 15. Rd2 {[%emt 0:00:30]} Bf8 {[%emt 0:00:30]} 16. Rad1 {[%emt 0:06:50]} h6 {[%emt 0:00:30]} 17. Nf5 {[%emt 0:08:03]} Bxf5 {[%emt 0:02:57]} 18. exf5 {[%emt 0:00:30]} Qb4 {[%emt 0:05:40]} 19. Bxd6 {[%emt 0:07:30]} Bxd6 {[%emt 0:01:40]} 20. Rxd6 {[%emt 0:00:30]} Qxc4 {[%emt 0:02:30]} 21. Be2 {[%emt 0:00:30]} Qf4 {[%emt 0:11:40]} 22. R6d4 {[%emt 0:00:30]} Qe5 {[%emt 0:00:30]} 23. Bc4 {[%emt 0:00:30]} Re7 {[%emt 0:08:30]} 24. Ne2 {[%emt 0:27:20]} Rae8 {[%emt 0:09:20]} 25. Nf4 {[%emt 0:00:30]} Kh7 {[%emt 0:00:30]} 26. Bxf7 {[%emt 0:15:00]} Rxf7 {[%emt 0:00:30]} 27. Ng6 {[%emt 0:00:30]} Qe2 {[%emt 0:01:40]} 28. R4d2 {[%emt 0:06:40]} 1/2-1/2

[Event "Magistral Szmetan Giardelli 2019"]
[Site "Buenos Aires"]
[Date "2019.12.06"]
[Round "6.4"]
[White "Granda Zuniga, Julio E"]
[Black "Hoffman, Alejandro"]
[Result "0-1"]
[ECO "E14"]
[WhiteElo "2644"]
[BlackElo "2441"]
[Annotator "RC"]
[PlyCount "50"]
[EventDate "2019.12.01"]
[EventType "tourn"]
[EventCountry "ARG"]
[SourceTitle "playchess.com"]
[Source "ChessBase"]
[SourceQuality "1"]
[TimeControl "40/5400+30:1800+30"]

1. d4 {[%emt 0:00:00]} Nf6 {[%emt 0:00:00]} 2. c4 {[%emt 0:00:30]} e6 {[%emt 0:00:30]} 3. Nf3 {[%emt 0:00:30]} d5 {[%emt 0:09:55]} 4. e3 {[%emt 0:00:30]} Be7 {[%emt 0:00:30]} 5. b3 {[%emt 0:00:30]} O-O {[%emt 0:00:30]} 6. Bd3 {[%emt 0:00:30]} b6 {[%emt 0:00:30]} 7. O-O {[%emt 0:00:30]} Bb7 {[%emt 0:00:30]} 8. Bb2 {[%emt 0:00:30]} dxc4 {[%emt 0:00:30]} 9. bxc4 {[%emt 0:00:30]} c5 {[%emt 0:00:30]} 10. Nbd2 {[%emt 0:06:01]} Nc6 {[%emt 0:00:30]} 11. Rc1 {[%emt 0:14:40]} Re8 {[%emt 0:07:00]} 12. Bb1 {[%emt 0:05:30]} cxd4 {[%emt 0:08:00]} 13. exd4 {[%emt 0:00:30]} Bf8 {[%emt 0:00:30]} 14. Qe2 {[%emt 0:00:30]} g6 {[%emt 0:00:30]} 15. Rfd1 {[%emt 0:00:30]} Bh6 {[%emt 0:09:30]} 16. h4 {[%emt 0:16:59]} Nh5 {[%emt 0:00:30]} 17. a3 {[%emt 0:06:00]} Rc8 {[%emt 0:13:01]} 18. g3 {[%emt 0:08:51]} Qc7 {[%emt 0:10:49]} 19. Qe1 {[%emt 0:08:14]} Na5 {[%emt 0:09:06]} 20. Ng5 {[%emt 0:00:30]} Bg7 {[%emt 0:19:30]} 21. Ba2 {[%emt 0:00:30]} Rcd8 {[%emt 0:06:50]} 22. Qe3 {[%emt 0:08:40]} Nc6 23. Ndf3 {[%emt 0:00:30]} h6 24. Ne4 {[%emt 0:00:30]} f5 25. Ned2 {[%emt 0:00:30]} Nxg3 0-1

[Event "Magistral Szmetan Giardelli 2019"]
[Site "Buenos Aires"]
[Date "2019.12.06"]
[Round "6.5"]
[White "Flores, Diego"]
[Black "Delgado Ramirez, Neuris"]
[Result "0-1"]
[ECO "A40"]
[WhiteElo "2608"]
[BlackElo "2619"]
[Annotator "ChessBase"]
[PlyCount "118"]
[EventDate "2019.12.01"]
[EventType "tourn"]
[EventCountry "ARG"]
[SourceTitle "playchess.com"]
[Source "ChessBase"]
[SourceQuality "1"]
[TimeControl "40/5400+30:1800+30"]

1. c4 {[%emt 0:00:00]} b6 {[%emt 0:09:25]} 2. d4 {[%emt 0:00:30]} e6 {[%emt 0:13:10]} 3. Nc3 {[%emt 0:00:30]} Bb4 {[%emt 0:00:30]} 4. e3 {[%emt 0:07:31]} Bxc3+ {[%emt 0:00:30]} 5. bxc3 {[%emt 0:00:30]} Ne7 {[%emt 0:00:30]} 6. Bd3 {[%emt 0:06:59]} Nbc6 {[%emt 0:05:30]} 7. Qg4 {[%emt 0:17:31]} O-O {[%emt 0:00:30]} 8. Qh4 {[%emt 0:17:00]} f5 {[%emt 0:00:30]} 9. Nf3 {[%emt 0:06:00]} Ng6 {[%emt 0:04:30]} 10. Qh5 {[%emt 0:00:30]} Qe8 {[%emt 0:00:30]} 11. g4 {[%emt 0:08:30]} Bb7 {[%emt 0:00:30]} 12. Rg1 {[%emt 0:12:30]} Nb4 {[%emt 0:02:50]} 13. cxb4 {[%emt 0:00:30]} Bxf3 {[%emt 0:00:30]} 14. Qh3 {[%emt 0:04:20]} fxg4 {[%emt 0:00:30]} 15. Rxg4 {[%emt 0:00:30]} Bxg4 {[%emt 0:00:30]} 16. Qxg4 {[%emt 0:00:30]} e5 {[%emt 0:08:14]} 17. Bb2 {[%emt 0:00:30]} Qf7 {[%emt 0:09:06]} 18. Qg3 {[%emt 0:00:30]} Qe7 {[%emt 0:00:30]} 19. c5 {[%emt 0:03:50]} e4 {[%emt 0:03:30]} 20. Bc4+ {[%emt 0:00:30]} Kh8 {[%emt 0:00:30]} 21. Qxc7 {[%emt 0:00:30]} Qf6 {[%emt 0:00:30]} 22. Qg3 {[%emt 0:00:30]} bxc5 {[%emt 0:07:50]} 23. bxc5 {[%emt 0:00:30]} Rab8 {[%emt 0:00:30]} 24. Bc3 {[%emt 0:00:30]} Nh4 {[%emt 0:00:30]} 25. Rc1 {[%emt 0:00:30]} Nf5 {[%emt 0:00:30]} 26. Qg2 {[%emt 0:00:30]} Rbe8 {[%emt 0:00:30]} 27. Ke2 {[%emt 0:00:30]} d5 {[%emt 0:04:20]} 28. cxd6 {[%emt 0:00:30]} Nxd6 {[%emt 0:00:30]} 29. d5 {[%emt 0:00:30]} Qf3+ {[%emt 0:00:30]} 30. Qxf3 {[%emt 0:00:30]} exf3+ {[%emt 0:00:30]} 31. Kd3 {[%emt 0:00:30]} Ne4 {[%emt 0:06:00]} 32. Be1 {[%emt 0:00:30]} Rf5 {[%emt 0:09:30]} 33. Bb3 {[%emt 0:00:30]} Rg5 {[%emt 0:00:30]} 34. h4 {[%emt 0:00:30]} Rg1 {[%emt 0:00:30]} 35. Ba4 {[%emt 0:00:30]} Rxe1 {[%emt 0:00:30]} 36. Rxe1 {[%emt 0:00:30]} Nxf2+ {[%emt 0:04:20]} 37. Kc3 {[%emt 0:00:30]} Re5 {[%emt 0:00:30]} 38. Bb3 {[%emt 0:04:30]} Ng4 {[%emt 0:00:30]} 39. Kd4 {[%emt 0:00:30]} Rf5 {[%emt 0:02:40]} 40. d6 {[%emt 0:00:30]} Rf8 {[%emt 0:04:34]} 41. e4 f2 42. Rf1 Nh2 43. Bc4 Nxf1 44. Bxf1 Kg8 45. Bc4+ Kh8 46. Bf1 Kg8 47. e5 Kf7 48. Kd5 Ke8 49. e6 a6 50. a4 Rf3 51. a5 Ra3 52. Kc6 Rxa5 53. Bd3 g6 54. h5 Rxh5 55. Bxa6 Rh1 56. Bb5 f1=Q 57. Kc7+ Qxb5 58. d7+ Ke7 59. d8=Q+ Kxe6 0-1

[Event "Magistral Szmetan Giardelli 2019"]
[Site "Buenos Aires"]
[Date "2019.12.08"]
[Round "8.1"]
[White "Slipak, Sergio"]
[Black "Santiago, Yago De Moura"]
[Result "1-0"]
[ECO "A25"]
[WhiteElo "2384"]
[BlackElo "2479"]
[Annotator "ChessBase"]
[PlyCount "87"]
[EventDate "2019.12.01"]
[EventType "tourn"]
[EventCountry "ARG"]
[SourceTitle "playchess.com"]
[Source "ChessBase"]
[SourceQuality "1"]
[TimeControl "40/5400+30:1800+30"]

1. c4 {[%emt 0:00:00]} e5 {[%emt 0:00:00]} 2. Nc3 {[%emt 0:00:30]} Nc6 {[%emt 0:00:30]} 3. g3 {[%emt 0:00:30]} h5 {[%emt 0:04:53]} 4. Nf3 {[%emt 0:05:11]} Bc5 {[%emt 0:00:30]} 5. e3 {[%emt 0:06:00]} d6 {[%emt 0:00:30]} 6. d4 {[%emt 0:00:30]} Bb4 {[%emt 0:10:50]} 7. Bg2 {[%emt 0:06:00]} Bg4 {[%emt 0:02:51]} 8. h3 {[%emt 0:00:30]} Bd7 {[%emt 0:00:30]} 9. Bd2 {[%emt 0:05:30]} Nf6 {[%emt 0:06:40]} 10. a3 {[%emt 0:04:50]} Bxc3 {[%emt 0:00:30]} 11. Bxc3 {[%emt 0:00:30]} Qe7 {[%emt 0:00:30]} 12. d5 {[%emt 0:00:30]} Nd8 {[%emt 0:00:30]} 13. Nxe5 {[%emt 0:08:06]} Bf5 {[%emt 0:07:13]} 14. Nf3 {[%emt 0:07:10]} Be4 {[%emt 0:00:30]} 15. O-O {[%emt 0:00:30]} c6 {[%emt 0:04:50]} 16. Bxf6 {[%emt 0:00:30]} Qxf6 {[%emt 0:00:30]} 17. Qd4 {[%emt 0:00:30]} Qxd4 {[%emt 0:03:50]} 18. Nxd4 {[%emt 0:00:30]} Bxg2 {[%emt 0:00:30]} 19. Kxg2 {[%emt 0:00:30]} g6 {[%emt 0:00:30]} 20. b4 {[%emt 0:07:40]} Kd7 {[%emt 0:01:00]} 21. Rfd1 {[%emt 0:00:30]} Rc8 {[%emt 0:00:30]} 22. Rac1 {[%emt 0:04:10]} c5 {[%emt 0:00:30]} 23. bxc5 {[%emt 0:00:30]} dxc5 {[%emt 0:00:30]} 24. Nb5 {[%emt 0:03:50]} Ra8 {[%emt 0:02:00]} 25. e4 {[%emt 0:00:30]} f6 {[%emt 0:00:30]} 26. f4 {[%emt 0:05:50]} Nf7 {[%emt 0:00:30]} 27. Re1 {[%emt 0:00:30]} a6 {[%emt 0:01:50]} 28. Nc3 {[%emt 0:00:30]} Kc7 {[%emt 0:12:27]} 29. e5 {[%emt 0:00:30]} fxe5 {[%emt 0:00:30]} 30. fxe5 {[%emt 0:04:04]} Rhe8 {[%emt 0:00:30]} 31. e6 {[%emt 0:07:50]} Nd6 {[%emt 0:00:30]} 32. Ne2 {[%emt 0:04:30]} g5 {[%emt 0:08:20]} 33. Ng1 {[%emt 0:00:30]} b5 {[%emt 0:02:50]} 34. cxb5 {[%emt 0:00:30]} Kb6 {[%emt 0:00:30]} 35. bxa6 {[%emt 0:00:30]} c4 {[%emt 0:00:30]} 36. Nf3 {[%emt 0:06:20]} Kc5 {[%emt 0:00:30]} 37. Nxg5 {[%emt 0:03:20]} Rxa6 {[%emt 0:10:30]} 38. Ne4+ {[%emt 0:00:30]} Nxe4 {[%emt 0:00:30]} 39. Rxe4 {[%emt 0:00:30]} Rxa3 {[%emt 0:03:30]} 40. Rcxc4+ {[%emt 0:00:30]} Kxd5 {[%emt 0:01:30]} 41. Rcd4+ {[%emt 0:30:30]} Kc5 {[%emt 0:30:30]} 42. Rd2 {[%emt 0:00:30]} Rg8 {[%emt 0:03:50]} 43. e7 {[%emt 0:00:30]} Rgxg3+ {[%emt 0:00:30]} 44. Kf2 {[%emt 0:03:20]} 1-0

[Event "Magistral Szmetan Giardelli 2019"]
[Site "Buenos Aires"]
[Date "2019.12.08"]
[Round "8.4"]
[White "Flores, Diego"]
[Black "Felgaer, Ruben"]
[Result "1/2-1/2"]
[ECO "A30"]
[WhiteElo "2608"]
[BlackElo "2560"]
[Annotator "RC"]
[PlyCount "106"]
[EventDate "2019.12.01"]
[EventType "tourn"]
[EventCountry "ARG"]
[SourceTitle "playchess.com"]
[Source "ChessBase"]
[SourceQuality "1"]
[TimeControl "40/5400+30:1800+30"]

1. c4 {[%emt 0:00:00]} c5 {[%emt 0:00:00]} 2. b3 {[%emt 0:11:11]} Nc6 {[%emt 0:00:30]} 3. Bb2 {[%emt 0:00:30]} e5 {[%emt 0:10:51]} 4. g3 {[%emt 0:00:30]} Nge7 {[%emt 0:08:50]} 5. Nf3 {[%emt 0:05:30]} d6 {[%emt 0:00:30]} 6. Bg2 {[%emt 0:06:40]} g6 {[%emt 0:00:30]} 7. O-O {[%emt 0:00:30]} Bg7 {[%emt 0:00:30]} 8. Nc3 {[%emt 0:00:30]} O-O {[%emt 0:00:30]} 9. d3 {[%emt 0:00:30]} Rb8 {[%emt 0:00:30]} 10. a3 {[%emt 0:04:50]} a6 {[%emt 0:04:10]} 11. Nd2 {[%emt 0:03:56]} b5 {[%emt 0:03:34]} 12. e3 {[%emt 0:00:30]} Bf5 {[%emt 0:10:50]} 13. Qc2 {[%emt 0:00:30]} Qd7 {[%emt 0:04:50]} 14. Nd5 {[%emt 0:00:30]} Nxd5 {[%emt 0:07:20]} 15. cxd5 {[%emt 0:00:30]} Ne7 {[%emt 0:00:30]} 16. f4 {[%emt 0:06:00]} Bh3 {[%emt 0:11:20]} 17. Bxh3 {[%emt 0:01:10]} Qxh3 {[%emt 0:00:30]} 18. e4 {[%emt 0:16:47]} exf4 {[%emt 0:00:30]} 19. Rxf4 {[%emt 0:04:03]} Qh6 {[%emt 0:00:30]} 20. Raf1 {[%emt 0:27:10]} f5 {[%emt 0:00:30]} 21. Kg2 {[%emt 0:02:40]} Bxb2 {[%emt 0:03:20]} 22. Qxb2 {[%emt 0:00:30]} Qg7 {[%emt 0:00:30]} 23. Qxg7+ {[%emt 0:01:10]} Kxg7 {[%emt 0:00:30]} 24. b4 Rbc8 {[%emt 0:06:40]} 25. bxc5 Rxc5 {[%emt 0:00:30]} 26. Nf3 Rc3 {[%emt 0:00:30]} 27. Nd4 Kg8 28. R4f3 Rxa3 29. g4 Ra2+ 30. Kg3 Rd2 31. Ne6 Rf6 32. Rc1 h6 33. h4 Kf7 34. Rc7 f4+ 35. Nxf4 g5 36. hxg5 hxg5 37. Ng6 Kxg6 38. Rxe7 Rxf3+ 39. Kxf3 Rxd3+ 40. Ke2 Ra3 41. Re6+ Kf7 42. Rxd6 b4 43. e5 a5 44. Rb6 Rc3 45. Rb7+ Ke8 46. Rb8+ Kd7 47. e6+ Kd6 48. Kd2 Rc7 49. Rb5 b3 50. Kd3 Ke5 51. Rxb3 Kxd5 52. Rb5+ Kxe6 53. Rxa5 Kf6 1/2-1/2

[Event "Magistral Szmetan Giardelli 2019"]
[Site "Buenos Aires"]
[Date "2019.12.11"]
[Round "11.1"]
[White "Hoffman, Alejandro"]
[Black "Slipak, Sergio"]
[Result "0-1"]
[ECO "D37"]
[WhiteElo "2441"]
[BlackElo "2384"]
[Annotator "NA"]
[PlyCount "102"]
[EventDate "2019.12.01"]
[EventType "tourn"]
[EventCountry "ARG"]
[SourceTitle "playchess.com"]
[Source "ChessBase"]
[SourceQuality "1"]
[TimeControl "40/5400+30:1800+30"]

1. d4 {[%emt 0:00:00]} d5 {[%emt 0:00:00]} 2. c4 {[%emt 0:00:30]} e6 {[%emt 0:00:30]} 3. Nc3 {[%emt 0:00:30]} Be7 {[%emt 0:00:30]} 4. Nf3 {[%emt 0:00:30]} Nf6 {[%emt 0:00:30]} 5. Bf4 {[%emt 0:00:30]} O-O {[%emt 0:00:30]} 6. e3 {[%emt 0:00:30]} b6 {[%emt 0:13:01]} 7. Bd3 {[%emt 0:04:21]} dxc4 {[%emt 0:00:30]} 8. Bxc4 {[%emt 0:00:30]} Bb7 {[%emt 0:00:30]} 9. O-O {[%emt 0:00:30]} Nbd7 {[%emt 0:14:50]} 10. Qe2 {[%emt 0:10:10]} Nd5 {[%emt 0:05:10]} 11. Nxd5 {[%emt 0:13:56]} exd5 {[%emt 0:12:44]} 12. Ba6 {[%emt 0:00:30]} Qc8 {[%emt 0:00:30]} 13. Bd3 {[%emt 0:09:00]} Nf6 {[%emt 0:00:30]} 14. Rac1 {[%emt 0:06:20]} c5 {[%emt 0:00:30]} 15. dxc5 {[%emt 0:04:30]} bxc5 {[%emt 0:00:30]} 16. Nd4 {[%emt 0:00:30]} g6 {[%emt 0:00:30]} 17. Rfd1 {[%emt 0:18:30]} Qd8 {[%emt 0:00:30]} 18. Nb5 {[%emt 0:04:00]} Qb6 {[%emt 0:04:00]} 19. Bc7 {[%emt 0:00:30]} Qe6 {[%emt 0:09:41]} 20. Bg3 {[%emt 0:00:30]} Qb6 {[%emt 0:00:30]} 21. b3 {[%emt 0:00:30]} Rac8 {[%emt 0:00:30]} 22. Nc3 {[%emt 0:00:30]} Qe6 {[%emt 0:11:41]} 23. Na4 {[%emt 0:00:30]} Nh5 {[%emt 0:00:30]} 24. Qd2 {[%emt 0:00:30]} Nxg3 {[%emt 0:06:50]} 25. hxg3 {[%emt 0:00:30]} c4 {[%emt 0:03:10]} 26. Be2 {[%emt 0:00:30]} Ba3 {[%emt 0:09:59]} 27. Rc2 {[%emt 0:00:30]} cxb3 {[%emt 0:00:30]} 28. axb3 {[%emt 0:00:30]} Bb4 29. Qc1 {[%emt 0:05:51]} d4 30. Rxd4 {[%emt 0:00:30]} Qxb3 31. Rxc8 {[%emt 0:00:30]} Rxc8 32. Qd1 {[%emt 0:00:30]} Qxd1+ 33. Bxd1 {[%emt 0:00:30]} a5 34. Bb3 {[%emt 0:02:51]} Rc1+ 35. Kh2 {[%emt 0:00:30]} Bc6 36. Rd8+ {[%emt 0:00:30]} Kg7 37. Nb6 {[%emt 0:04:00]} Rb1 38. Bd5 {[%emt 0:00:30]} Bxd5 39. Nxd5 {[%emt 0:00:30]} Be1 40. f3 {[%emt 0:00:30]} a4 41. e4 {[%emt 0:31:40]} Rb5 42. e5 {[%emt 0:09:40]} a3 43. f4 {[%emt 0:00:30]} Rxd5 44. Rxd5 {[%emt 0:00:30]} a2 45. Rd1 {[%emt 0:00:30]} Bc3 46. g4 {[%emt 0:00:30]} h6 47. g3 {[%emt 0:00:30]} a1=Q 48. Rxa1 {[%emt 0:00:30]} Bxa1 49. Kg2 {[%emt 0:00:30]} Kf8 50. Kf3 {[%emt 0:00:30]} Ke7 51. Ke4 {[%emt 0:00:30]} Bc3 0-1

[Event "Magistral Szmetan Giardelli 2019"]
[Site "Buenos Aires"]
[Date "2019.12.11"]
[Round "11.2"]
[White "Felgaer, Ruben"]
[Black "Delgado Ramirez, Neuris"]
[Result "0-1"]
[ECO "B91"]
[WhiteElo "2560"]
[BlackElo "2619"]
[Annotator "ChessBase"]
[PlyCount "116"]
[EventDate "2019.12.01"]
[EventType "tourn"]
[EventCountry "ARG"]
[SourceTitle "playchess.com"]
[Source "ChessBase"]
[SourceQuality "1"]
[TimeControl "40/5400+30:1800+30"]

1. e4 {[%emt 0:00:00]} c5 {[%emt 0:00:00]} 2. Nf3 {[%emt 0:00:30]} d6 {[%emt 0:00:30]} 3. d4 {[%emt 0:00:30]} cxd4 {[%emt 0:00:30]} 4. Nxd4 {[%emt 0:00:30]} Nf6 {[%emt 0:00:30]} 5. Nc3 {[%emt 0:00:30]} a6 {[%emt 0:00:30]} 6. g3 {[%emt 0:00:30]} e5 {[%emt 0:00:30]} 7. Nb3 {[%emt 0:00:30]} Bg4 {[%emt 0:00:30]} 8. Be2 {[%emt 0:13:01]} Be6 {[%emt 0:00:30]} 9. f4 {[%emt 0:00:30]} Be7 {[%emt 0:00:30]} 10. f5 {[%emt 0:05:10]} Bc8 {[%emt 0:14:00]} 11. Be3 {[%emt 0:00:30]} b5 {[%emt 0:00:30]} 12. Nd5 {[%emt 0:10:10]} Nbd7 {[%emt 0:00:30]} 13. a4 {[%emt 0:00:30]} Nxd5 {[%emt 0:00:30]} 14. Qxd5 {[%emt 0:00:30]} Rb8 {[%emt 0:05:10]} 15. axb5 {[%emt 0:00:30]} Bb7 {[%emt 0:00:30]} 16. Qd3 {[%emt 0:00:30]} axb5 {[%emt 0:00:30]} 17. O-O {[%emt 0:06:20]} O-O {[%emt 0:00:30]} 18. Ra7 {[%emt 0:00:30]} Nf6 {[%emt 0:00:30]} 19. Bf3 {[%emt 0:07:37]} Re8 {[%emt 0:00:30]} 20. Rfa1 {[%emt 0:28:04]} d5 {[%emt 0:00:30]} 21. Qxb5 {[%emt 0:00:30]} Qc8 {[%emt 0:00:30]} 22. Qe2 {[%emt 0:04:30]} dxe4 {[%emt 0:00:30]} 23. Bg2 {[%emt 0:00:30]} Bd5 {[%emt 0:00:30]} 24. h3 {[%emt 0:18:30]} Qxf5 {[%emt 0:00:30]} 25. c4 {[%emt 0:00:30]} Rxb3 {[%emt 0:00:50]} 26. cxd5 {[%emt 0:00:30]} Nxd5 {[%emt 0:00:30]} 27. Qc4 Rxe3 {[%emt 0:05:21]} 28. Qxd5 Rxg3 {[%emt 0:00:30]} 29. Rf1 Qg6 {[%emt 0:00:30]} 30. Rxe7 Rxg2+ {[%emt 0:00:30]} 31. Kh1 Rf8 {[%emt 0:00:30]} 32. Rexf7 Rg1+ {[%emt 0:00:30]} 33. Rxg1 Qxf7 {[%emt 0:00:30]} 34. Qxe4 Qe6 {[%emt 0:00:30]} 35. Qg4 Qd5+ {[%emt 0:00:30]} 36. Rg2 g6 {[%emt 0:00:30]} 37. Kh2 Rf4 {[%emt 0:06:50]} 38. Qc8+ Kg7 {[%emt 0:00:30]} 39. Qc7+ Kh6 {[%emt 0:00:30]} 40. Qc1 Qf7 {[%emt 0:03:10]} 41. Qe3 Qf6 {[%emt 0:30:30]} 42. b4 g5 {[%emt 0:00:30]} 43. b5 Rb4 {[%emt 0:00:30]} 44. Rf2 Qe6 {[%emt 0:00:30]} 45. Rc2 Rxb5 {[%emt 0:00:30]} 46. h4 Qg4 {[%emt 0:10:09]} 47. hxg5+ Kh5 {[%emt 0:05:30]} 48. Qf2 Qf4+ {[%emt 0:17:40]} 49. Qxf4 exf4 {[%emt 0:00:30]} 50. Kg2 Kg4 {[%emt 0:00:30]} 51. Kh2 Rb3 {[%emt 0:01:30]} 52. Kg2 Rh3 {[%emt 0:00:30]} 53. Rc4 Ra3 {[%emt 0:00:30]} 54. Rc2 Rg3+ {[%emt 0:00:30]} 55. Kf2 Rh3 {[%emt 0:00:30]} 56. Rc5 Rh2+ {[%emt 0:00:30]} 57. Kf1 f3 {[%emt 0:00:30]} 58. Kg1 Kg3 {[%emt 0:00:30]} 0-1

[Event "Magistral Szmetan Giardelli 2019"]
[Site "Buenos Aires"]
[Date "2019.12.11"]
[Round "11.3"]
[White "Perez Ponsa, Federico"]
[Black "Pichot, Alan"]
[Result "1-0"]
[ECO "E35"]
[WhiteElo "2560"]
[BlackElo "2588"]
[Annotator "ChessBase"]
[PlyCount "57"]
[EventDate "2019.12.01"]
[EventType "tourn"]
[EventCountry "ARG"]
[SourceTitle "playchess.com"]
[Source "ChessBase"]
[SourceQuality "1"]
[TimeControl "40/5400+30:1800+30"]

1. d4 {[%emt 0:00:00]} Nf6 {[%emt 0:00:00]} 2. c4 {[%emt 0:00:30]} e6 {[%emt 0:00:30]} 3. Nc3 {[%emt 0:00:30]} Bb4 {[%emt 0:00:30]} 4. Qc2 {[%emt 0:00:30]} d5 {[%emt 0:00:30]} 5. cxd5 {[%emt 0:00:30]} exd5 {[%emt 0:00:30]} 6. Bg5 {[%emt 0:00:30]} h6 {[%emt 0:00:30]} 7. Bh4 {[%emt 0:00:30]} g5 {[%emt 0:00:30]} 8. Bg3 {[%emt 0:00:30]} Nc6 {[%emt 0:00:30]} 9. e3 {[%emt 0:00:30]} h5 {[%emt 0:00:30]} 10. Bb5 {[%emt 0:00:30]} h4 {[%emt 0:00:30]} 11. Be5 {[%emt 0:00:30]} O-O {[%emt 0:00:30]} 12. Bxf6 {[%emt 0:19:11]} Qxf6 {[%emt 0:00:30]} 13. a3 {[%emt 0:00:30]} Bf5 {[%emt 0:00:30]} 14. Bd3 {[%emt 0:00:30]} Bxc3+ {[%emt 0:00:30]} 15. bxc3 {[%emt 0:00:30]} Ne7 {[%emt 0:00:30]} 16. h3 {[%emt 0:10:10]} c5 {[%emt 0:00:30]} 17. Nf3 {[%emt 0:05:10]} Rac8 {[%emt 0:00:30]} 18. Bxf5 {[%emt 0:06:20]} Nxf5 {[%emt 0:00:30]} 19. Qb3 {[%emt 0:00:30]} Rfd8 {[%emt 0:07:37]} 20. Qxb7 {[%emt 0:12:44]} Rb8 {[%emt 0:00:30]} 21. Qxa7 {[%emt 0:00:30]} cxd4 {[%emt 0:09:00]} 22. cxd4 {[%emt 0:00:30]} Ra8 {[%emt 0:29:20]} 23. Qc7 {[%emt 0:00:30]} Qa6 {[%emt 0:00:30]} 24. Qe5 {[%emt 0:00:30]} Qd3 {[%emt 0:00:30]} 25. Rd1 {[%emt 0:00:30]} Qc3+ {[%emt 0:00:30]} 26. Nd2 {[%emt 0:00:30]} Qd3 {[%emt 0:00:30]} 27. Nb1 {[%emt 0:00:30]} Qc2 {[%emt 0:00:50]} 28. O-O {[%emt 0:00:30]} Re8 {[%emt 0:00:30]} 29. Qxd5 {[%emt 0:00:30]} 1-0